bitfinex/quotes_ETHUSD_20230103
["timestamp","ask_amount","ask_price","bid_price","bid_amount"]
[1672748244276,9.93,1216.5,1216.4,29.68530117]
[1672748245392,14.23994606,1216.5,1216.4,29.68530117]
[1672748247385,14.24194606,1216.5,1216.4,29.68330117]
[1672748247536,9.23994606,1216.5,1216.4,29.68530117]
[1672748248712,14.23994606,1216.5,1216.4,29.68530117]
[1672748249112,16.2888143,1216.5,1216.4,29.68530117]
[1672748249591,11.97886824,1216.5,1216.4,29.68530117]
[1672748249763,13.62074337,1216.5,1216.4,39.55047117]
[1672748256189,8.62074337,1216.5,1216.4,39.55047117]
[1672748257034,13.62074337,1216.5,1216.4,39.55047117]
[1672748259794,13.62074337,1216.5,1216.4,39.54679092]
[1672748262981,8.62074337,1216.5,1216.4,39.54679092]
[1672748264100,13.62074337,1216.5,1216.4,39.54679092]
[1672748270145,8.62074337,1216.5,1216.4,39.54679092]
[1672748271133,13.62074337,1216.5,1216.4,39.54679092]
[1672748273903,14.38436885,1216.5,1216.4,39.54679092]
[1672748274107,10.69362548,1216.5,1216.4,39.54679092]
[1672748274510,14.3862965,1216.5,1216.4,39.54679092]
[1672748275011,10.69362548,1216.5,1216.4,39.54679092]
[1672748276128,14.38668647,1216.5,1216.4,39.54679092]
[1672748276490,15.00357154,1216.5,1216.4,39.54679092]
[1672748277295,10.00357154,1216.5,1216.4,39.54679092]
[1672748277471,11.07223869,1216.5,1216.4,39.54679092]
[1672748278328,16.07223869,1216.5,1216.4,39.54679092]
[1672748278644,15.00357154,1216.5,1216.4,39.54679092]
[1672748280412,10.69362548,1216.5,1216.4,39.54679092]
[1672748280629,15.00357154,1216.5,1216.4,39.54679092]
[1672748280794,15.00357154,1216.5,1216.4,39.54400796]
[1672748284209,10.00357154,1216.5,1216.4,39.54400796]
[1672748285013,15.00357154,1216.5,1216.4,39.54400796]
[1672748288432,5.76362548,1216.5,1216.4,39.54400796]
[1672748288760,9.30594606,1216.6,1216.5,6.0]
[1672748289015,9.23994606,1216.6,1216.5,45.53682265]
[1672748290119,9.23994606,1216.6,1216.5,39.53682265]
[1672748290475,4.93,1216.6,1216.5,39.53682265]
[1672748290696,9.93,1216.6,1216.5,39.53682265]
[1672748290840,14.24037029,1216.6,1216.5,39.53682265]
[1672748291462,14.23888083,1216.6,1216.5,39.53682265]
[1672748291679,14.23875717,1216.6,1216.5,39.53682265]
[1672748296272,9.23875717,1216.6,1216.5,39.53682265]
[1672748297328,14.23875717,1216.6,1216.5,39.53682265]
[1672748300022,14.24075717,1216.6,1216.5,39.53482265]
[1672748300233,14.23875717,1216.6,1216.5,39.53682265]
[1672748301931,9.93,1216.6,1216.5,39.53682265]
[1672748303377,9.23875717,1216.6,1216.5,39.53682265]
[1672748303491,4.93,1216.6,1216.5,39.53682265]
[1672748303700,9.23875717,1216.6,1216.5,39.53682265]
[1672748303965,4.93,1216.6,1216.5,39.53682265]
[1672748304145,8.62092043,1216.6,1216.5,39.53682265]
[1672748304341,13.62092043,1216.6,1216.5,39.53682265]
[1672748305274,9.93,1216.6,1216.5,39.53682265]
[1672748305743,13.6204748,1216.6,1216.5,39.53682265]
[1672748306868,9.93,1216.6,1216.5,39.53682265]
[1672748307170,13.62046255,1216.6,1216.5,39.53682265]
[1672748307526,9.93,1216.6,1216.5,39.53682265]
[1672748307951,13.62057039,1216.6,1216.5,39.53682265]
[1672748309053,13.62057039,1216.6,1216.5,39.53317068]
[1672748310254,8.62057039,1216.6,1216.5,39.53317068]
[1672748311402,13.62057039,1216.6,1216.5,39.53317068]
[1672748317509,8.62057039,1216.6,1216.5,39.53317068]
[1672748318385,13.62057039,1216.6,1216.5,39.53317068]
[1672748327048,8.69057039,1216.6,1216.5,43.68203182]
[1672748327426,8.69057039,1216.6,1216.5,50.02662653]
[1672748329504,8.69057039,1216.6,1216.5,43.67891372]
[1672748334833,3.69057039,1216.6,1216.5,43.67891372]
[1672748335174,8.69057039,1216.6,1216.5,43.67891372]
[1672748341300,5.0,1216.6,1216.5,43.67891372]
[1672748342078,8.69174155,1216.6,1216.5,43.67891372]
[1672748349569,3.69174155,1216.6,1216.5,43.67891372]
[1672748350095,8.69174155,1216.6,1216.5,43.67891372]
[1672748350535,8.69174155,1216.6,1216.5,52.24269662]
[1672748351166,8.69174155,1216.6,1216.5,52.24045307]
[1672748356416,8.69174155,1216.6,1216.5,45.69267017]
[1672748357772,3.69174155,1216.6,1216.5,45.69267017]
[1672748358654,8.69174155,1216.6,1216.5,45.69267017]
[1672748359058,5.0,1216.6,1216.5,45.69267017]
[1672748360311,8.69174155,1216.6,1216.5,45.69267017]
[1672748363877,5.0,1216.6,1216.5,45.69267017]
[1672748367083,8.69174155,1216.6,1216.5,45.69267017]
[1672748367269,5.0,1216.6,1216.5,49.2323216]
[1672748369824,8.69174155,1216.6,1216.5,49.2323216]
[1672748370042,8.69174155,1216.6,1216.5,45.69267017]
[1672748370196,5.0,1216.6,1216.5,45.69267017]
[1672748371075,3.75774155,1216.7,1216.5,45.69267017]
[1672748371241,3.69174155,1216.7,1216.5,45.69267017]
[1672748371897,5.0,1216.6,1216.5,45.69267017]
[1672748372469,8.69174155,1216.6,1216.5,45.69267017]
[1672748372606,5.0,1216.6,1216.5,45.69267017]
[1672748373958,8.69174155,1216.6,1216.5,45.69267017]
[1672748375094,8.69174155,1216.6,1216.5,45.69036045]
[1672748377907,3.69174155,1216.6,1216.5,45.69036045]
[1672748378949,8.69174155,1216.6,1216.5,45.69036045]
[1672748389664,3.69174155,1216.6,1216.5,45.69036045]
[1672748390653,8.69174155,1216.6,1216.5,45.69036045]
[1672748396754,3.69174155,1216.6,1216.5,45.69036045]
[1672748397695,8.69174155,1216.6,1216.5,45.69036045]
[1672748399875,8.69174155,1216.6,1216.5,45.68804751]
[1672748403706,3.69174155,1216.6,1216.5,45.68804751]
[1672748405271,8.69174155,1216.6,1216.5,45.68804751]
[1672748406766,10.61540704,1216.6,1216.5,41.53918637]
[1672748406990,6.30664987,1216.6,1216.5,41.53918637]
[1672748407700,10.61540704,1216.6,1216.5,41.53918637]
[1672748407928,6.30664987,1216.6,1216.5,41.53918637]
[1672748409748,6.30664987,1216.6,1216.5,39.52318637]
[1672748409957,9.99812709,1216.6,1216.5,39.52318637]
[1672748410269,6.30664987,1216.6,1216.5,39.52318637]
[1672748410500,10.61540704,1216.6,1216.5,39.52318637]
[1672748410675,9.99812725,1216.6,1216.5,39.52318637]
[1672748411098,9.99463882,1216.6,1216.5,39.52318637]
[1672748411310,6.30316144,1216.6,1216.5,39.52318637]
[1672748411475,10.61191861,1216.6,1216.5,39.52318637]
[1672748411933,6.30316144,1216.6,1216.5,39.52318637]
[1672748412353,15.54191861,1216.6,1216.5,39.52318637]
[1672748412548,15.77191861,1216.6,1216.5,39.52318637]
[1672748417783,11.46316144,1216.6,1216.5,39.52318637]
[1672748418580,15.77191861,1216.6,1216.5,39.52318637]
[1672748419356,11.46316144,1216.6,1216.5,39.52318637]
[1672748420096,15.77191861,1216.6,1216.5,39.52318637]
[1672748428413,10.77540704,1216.6,1216.5,39.52318637]
[1672748429588,15.77540704,1216.6,1216.5,39.52318637]
[1672748433291,15.15540339,1216.6,1216.5,39.52318637]
[1672748433523,15.1554831,1216.6,1216.5,39.52318637]
[1672748434518,13.84883323,1216.6,1216.5,39.52318637]
[1672748434730,13.84883323,1216.6,1216.5,39.52030941]
[1672748435066,10.16,1216.6,1216.5,39.52030941]
[1672748435393,14.46875717,1216.6,1216.5,39.52030941]
[1672748435603,9.46875717,1216.6,1216.5,39.52030941]
[1672748436752,14.46875717,1216.6,1216.5,39.52030941]
[1672748437155,15.92223289,1216.6,1216.5,39.52030941]
[1672748446396,10.92223289,1216.6,1216.5,39.52030941]
[1672748447390,15.92223289,1216.6,1216.5,39.52030941]
[1672748453381,10.92223289,1216.6,1216.5,39.52030941]
[1672748454474,15.92223289,1216.6,1216.5,39.52030941]
[1672748454887,11.61347572,1216.6,1216.5,39.52030941]
[1672748455120,15.92156234,1216.6,1216.5,39.52030941]
[1672748455323,11.61347572,1216.6,1216.5,29.65594941]
[1672748455570,16.70778198,1216.6,1216.5,29.65594941]
[1672748458152,11.61347572,1216.6,1216.5,29.65594941]
[1672748458396,16.70778198,1216.6,1216.5,29.65314373]
[1672748458682,19.35988198,1216.6,1216.5,0.07938265]
[1672748458916,19.35988198,1216.6,1216.5,9.86436]
[1672748459097,17.32488198,1216.6,1216.5,29.67246265]
[1672748459313,12.23057572,1216.6,1216.5,29.67246265]
[1672748459956,16.53734032,1216.6,1216.5,29.67246265]
[1672748460316,14.4667646,1216.6,1216.5,29.67246265]
[1672748461090,14.2367646,1216.6,1216.5,29.67246265]
[1672748464351,14.2387646,1216.6,1216.5,29.67046265]
[1672748464560,14.2367646,1216.6,1216.5,29.67246265]
[1672748466973,14.2367646,1216.6,1216.5,39.53682265]
[1672748467092,11.93141709,1216.6,1216.5,29.67246265]
[1672748467463,16.23801401,1216.6,1216.5,29.67246265]
[1672748471774,16.23801401,1216.6,1216.5,39.53682265]
[1672748473273,11.23801401,1216.6,1216.5,39.53682265]
[1672748474360,16.23801401,1216.6,1216.5,39.53682265]
[1672748475128,14.23659692,1216.6,1216.5,39.53682265]
[1672748475606,9.93,1216.6,1216.5,39.53682265]
[1672748475812,14.23659692,1216.6,1216.5,39.53682265]
[1672748477035,14.23659692,1216.6,1216.5,29.67246265]
[1672748477598,9.93,1216.6,1216.5,29.67246265]
[1672748477752,16.53333689,1216.6,1216.5,29.67246265]
[1672748477967,15.74535567,1216.6,1216.5,29.67246265]
[1672748478483,15.74535567,1216.6,1216.5,39.53682265]
[1672748478949,14.23632504,1216.6,1216.5,39.53682265]
[1672748480645,14.23632504,1216.6,1216.5,39.53319465]
[1672748480859,14.23572872,1216.6,1216.5,39.53319465]
[1672748481026,9.93,1216.6,1216.5,39.53319465]
[1672748481242,9.93,1216.6,1216.5,29.66883465]
[1672748481888,15.74478364,1216.6,1216.5,29.66883465]
[1672748482105,11.43903063,1216.6,1216.5,29.66883465]
[1672748483109,15.7446445,1216.6,1216.5,29.66883465]
[1672748483322,11.43903063,1216.6,1216.5,29.66883465]
[1672748483530,15.7446017,1216.6,1216.5,29.66883465]
[1672748484797,10.7446017,1216.6,1216.5,29.66883465]
[1672748485878,15.7446017,1216.6,1216.5,29.66883465]
[1672748489040,15.7446017,1216.6,1216.5,39.53319465]
[1672748493084,15.7446017,1216.6,1216.5,29.66883465]
[1672748495021,15.9746017,1216.6,1216.5,29.66883465]
[1672748495787,10.9746017,1216.6,1216.5,39.53319465]
[1672748496003,10.7446017,1216.6,1216.5,39.53319465]
[1672748497275,14.23557107,1216.6,1216.5,39.53319465]
[1672748503860,14.23557107,1216.6,1216.5,39.5300562]
[1672748504274,9.23557107,1216.6,1216.5,39.5300562]
[1672748505453,14.23557107,1216.6,1216.5,39.5300562]
[1672748505909,14.23557107,1216.6,1216.5,29.6656962]
[1672748506142,16.1751588,1216.6,1216.5,39.5300562]
[1672748506384,16.1751588,1216.6,1216.5,29.6656962]
[1672748506871,16.1751588,1216.6,1216.5,39.5300562]
[1672748507295,14.23557107,1216.6,1216.5,39.5300562]
[1672748516108,14.18557107,1216.6,1216.5,39.5300562]
[1672748516963,9.18557107,1216.6,1216.5,39.5300562]
[1672748518049,14.18557107,1216.6,1216.5,39.5300562]
[1672748519884,14.18557107,1216.6,1216.5,29.6656962]
[1672748520572,14.18557107,1216.6,1216.5,29.6636962]
[1672748520573,14.18757107,1216.6,1216.5,29.6636962]
[1672748520797,14.18557107,1216.6,1216.5,39.5300562]
[1672748522527,13.57365588,1216.6,1216.5,39.5300562]
[1672748522738,14.18258633,1216.6,1216.5,39.5300562]
[1672748524462,14.18258633,1216.6,1216.5,0.07938265]
[1672748524612,14.18458633,1216.6,1216.5,19.72872]
[1672748524822,14.18258633,1216.6,1216.5,39.53682265]
[1672748526080,14.18458633,1216.6,1216.5,39.53482265]
[1672748526291,14.18258633,1216.6,1216.5,39.53682265]
[1672748534318,9.87701526,1216.6,1216.5,39.53682265]
[1672748534721,9.18258633,1216.6,1216.5,39.53682265]
[1672748535417,4.87701526,1216.6,1216.5,39.53682265]
[1672748535890,9.87701526,1216.6,1216.5,39.53682265]
[1672748536401,14.18258633,1216.6,1216.5,39.53682265]
[1672748537814,13.57070185,1216.6,1216.5,44.68877945]
[1672748538023,13.57069697,1216.6,1216.5,44.68877945]
[1672748539278,13.57069697,1216.6,1216.5,39.53682265]
[1672748539448,13.57078533,1216.6,1216.5,39.53682265]
[1672748539661,13.57068323,1216.6,1216.5,39.53682265]
[1672748540533,14.18258633,1216.6,1216.5,39.53682265]
[1672748540941,14.18258633,1216.6,1216.5,29.67246265]
[1672748541932,14.18258633,1216.6,1216.5,39.53682265]
[1672748542143,13.56983449,1216.6,1216.5,39.53682265]
[1672748544678,13.56983449,1216.6,1216.5,39.53403815]
[1672748548030,13.56983449,1216.6,1216.5,47.56017615]
[1672748548647,9.87701526,1216.6,1216.5,47.56017615]
[1672748549334,4.94301526,1216.7,1216.5,47.56017615]
[1672748549711,4.87701526,1216.7,1216.5,47.56017615]
[1672748550515,5.0,1216.6,1216.5,47.56017615]
[1672748555192,5.0,1216.6,1216.5,53.5144683]
[1672748555362,5.0,1216.6,1216.5,67.36891028]
[1672748555582,0.014,1216.7,1216.6,6.0]
[1672748555776,0.01161316,1216.9,1216.7,6.0]
[1672748555987,0.00200316,1216.9,1216.8,43.59658114]
[1672748556229,3.16e-06,1216.9,1216.8,51.3496615]
[1672748556434,3.16e-06,1216.9,1216.8,48.1602542]
[1672748556658,3.16e-06,1216.9,1216.8,58.3120542]
[1672748556868,3.16e-06,1216.9,1216.8,65.37975904]
[1672748559701,3.16e-06,1216.9,1216.8,63.34375904]
[1672748560768,3.16e-06,1216.9,1216.8,62.93146863]
[1672748562491,3.07151453,1216.9,1216.8,62.93146863]
[1672748563499,5.52874583,1216.9,1216.8,52.77966863]
[1672748564455,2.45723446,1216.9,1216.8,52.77966863]
[1672748569788,2.45723446,1216.9,1216.8,54.81566863]
[1672748571331,3.16e-06,1216.9,1216.8,54.81566863]
[1672748578106,5.53280015,1217.0,1216.9,47.46797584]
[1672748578296,5.53280015,1217.0,1216.9,55.86695094]
[1672748578466,5.53280015,1217.0,1216.9,49.58335849]
[1672748580877,2.46128878,1217.0,1216.9,49.58335849]
[1672748581081,5.53280015,1217.0,1216.9,53.73221963]
[1672748581296,2.46128878,1217.0,1216.9,53.73221963]
[1672748581510,0.00405748,1217.0,1216.9,53.73221963]
[1672748581819,0.00405748,1217.0,1216.9,61.00195608]
[1672748582182,2.46128878,1217.0,1216.9,61.00195608]
[1672748587166,6.59880015,1217.1,1217.0,6.0]
[1672748587359,6.53280015,1217.1,1217.0,53.72748379]
[1672748587567,6.53280015,1217.1,1217.0,62.03140739]
[1672748589771,6.53280015,1217.1,1217.0,59.99540739]
[1672748593588,4.07556885,1217.1,1217.0,59.99540739]
[1672748599315,4.07556885,1217.1,1217.0,59.99881184]
[1672748599740,4.07556885,1217.1,1217.0,62.03481184]
[1672748599951,6.53545408,1217.1,1217.0,62.03481184]
[1672748600204,15.72614603,1217.2,1217.1,6.0]
[1672748600480,5.01433239,1217.2,1217.1,51.70224379]
[1672748604197,5.01433239,1217.2,1217.1,53.52364935]
[1672748604619,0.01433239,1217.2,1217.1,53.52364935]
[1672748607208,3.08841914,1217.2,1217.1,53.52364935]
[1672748610644,5.54787248,1217.2,1217.1,61.15885863]
[1672748610911,5.54787248,1217.2,1217.1,55.97193976]
[1672748612342,2.48e-06,1217.2,1217.1,66.60714904]
[1672748612564,3.15719429,1217.4,1217.2,6.0]
[1672748612724,3.15719429,1217.4,1217.3,45.61638114]
[1672748612725,3.09319429,1217.4,1217.3,45.61638114]
[1672748612925,3.09119429,1217.4,1217.3,45.69576379]
[1672748614519,0.01632136,1217.4,1217.3,45.69576379]
[1672748615499,3.09119429,1217.4,1217.3,45.69576379]
[1672748615668,3.09119429,1217.4,1217.3,52.5989019]
[1672748616551,0.01632136,1217.4,1217.3,52.5989019]
[1672748619390,3.09119429,1217.4,1217.3,52.5989019]
[1672748620484,5.54873863,1217.4,1217.3,52.5989019]
[1672748621449,5.54828901,1217.4,1217.3,52.5989019]
[1672748621643,3.09119429,1217.4,1217.3,52.5989019]
[1672748622485,0.01632136,1217.4,1217.3,32.8831419]
[1672748622739,0.01632136,1217.4,1217.3,33.80188379]
[1672748624058,3.08764456,1217.4,1217.3,33.80188379]
[1672748624374,0.01632136,1217.4,1217.3,33.80188379]
[1672748624963,3.08792853,1217.4,1217.3,33.80188379]
[1672748625269,3.08792263,1217.4,1217.3,33.80188379]
[1672748625792,3.08792263,1217.4,1217.3,43.65976379]
[1672748626998,3.08792263,1217.4,1217.3,33.80188379]
[1672748627144,3.08792263,1217.4,1217.3,40.46019586]
[1672748627353,3.08792263,1217.4,1217.3,50.31807586]
[1672748628523,3.08792263,1217.4,1217.3,40.46019586]
[1672748632041,3.702135,1217.4,1217.3,40.46019586]
[1672748632556,3.08912344,1217.4,1217.3,40.46019586]
[1672748632771,0.01632136,1217.4,1217.3,40.46019586]
[1672748632913,3.09112437,1217.4,1217.3,40.45819586]
[1672748633128,3.08912437,1217.4,1217.3,40.46019586]
[1672748635447,3.08912437,1217.4,1217.3,50.31807586]
[1672748636398,0.01632136,1217.4,1217.3,50.31807586]
[1672748636837,0.01632136,1217.4,1217.3,50.31467386]
[1672748637488,0.01632136,1217.4,1217.3,40.45679386]
[1672748638595,3.702135,1217.4,1217.3,40.45679386]
[1672748639143,5.55077032,1217.4,1217.3,52.33667386]
[1672748643913,5.55077032,1217.4,1217.3,59.53082396]
[1672748644093,0.62347143,1217.7,1217.5,6.0]
[1672748644312,0.62347143,1217.7,1217.6,6.18486114]
[1672748644313,0.00687143,1217.7,1217.6,6.18486114]
[1672748644527,5.00687143,1217.7,1217.6,47.72204379]
[1672748644706,5.00687143,1217.7,1217.6,53.91171978]
[1672748644918,5.00687143,1217.7,1217.6,35.83059379]
[1672748644919,8.69268507,1217.7,1217.6,35.83059379]
[1672748645191,3.69268507,1217.7,1217.6,33.79459379]
[1672748646411,3.69268507,1217.7,1217.6,29.64573265]
[1672748647611,3.69510422,1217.7,1217.6,29.64573265]
[1672748648133,8.69510422,1217.7,1217.6,29.64573265]
[1672748648322,5.00687143,1217.7,1217.6,29.64573265]
[1672748648528,8.69563638,1217.7,1217.6,29.64573265]
[1672748656780,8.08019305,1217.7,1217.6,29.64573265]
[1672748657083,3.69563638,1217.7,1217.6,29.64573265]
[1672748657650,0.00687143,1217.7,1217.6,29.64573265]
[1672748658293,3.07988426,1217.7,1217.6,29.64573265]
[1672748659286,3.07988426,1217.7,1217.6,33.79459379]
[1672748659287,6.15320071,1217.7,1217.6,33.79459379]
[1672748659507,6.15320071,1217.7,1217.6,41.76726517]
[1672748664550,8.61128221,1217.7,1217.6,41.76726517]
[1672748665148,6.15320071,1217.7,1217.6,41.76726517]
[1672748665762,6.15046166,1217.7,1217.6,41.76726517]
[1672748668656,6.15046166,1217.7,1217.6,39.74526517]
[1672748669232,3.07714521,1217.7,1217.6,40.1657637]
[1672748669437,6.14981139,1217.7,1217.6,40.1657637]
[1672748670350,6.14981139,1217.7,1217.6,39.74526517]
[1672748670869,6.76591016,1217.7,1217.6,33.79459379]
[1672748674626,3.49543308,1217.8,1217.6,33.79459379]
[1672748674843,3.50943308,1217.8,1217.6,33.79459379]
[1672748677405,3.50943308,1217.8,1217.6,33.79259379]
[1672748677624,3.50743308,1217.8,1217.6,33.79459379]
[1672748679829,3.50743308,1217.8,1217.7,4.14886114]
[1672748680022,5.012,1217.8,1217.7,33.71278114]
[1672748680208,5.012,1217.8,1217.7,33.79216379]
[1672748680422,8.50743308,1217.8,1217.7,33.79216379]
[1672748684879,8.50743308,1217.8,1217.7,38.87695061]
[1672748685031,5.012,1217.8,1217.7,38.87695061]
[1672748686502,8.70655151,1217.8,1217.7,38.87695061]
[1672748686933,8.70655151,1217.8,1217.7,37.41695061]
[1672748687785,3.70655151,1217.8,1217.7,37.41695061]
[1672748688353,8.70655151,1217.8,1217.7,37.41695061]
[1672748693284,3.70655151,1217.8,1217.7,37.41695061]
[1672748700126,3.70655151,1217.8,1217.7,32.33216379]
[1672748700554,4.32104407,1217.8,1217.7,32.33216379]
[1672748701091,0.012,1217.8,1217.7,32.33216379]
[1672748701302,16.87450407,1217.9,1217.7,32.33216379]
[1672748701513,5.0,1217.8,1217.7,32.33216379]
[1672748703262,9.92554407,1217.8,1217.7,29.64330265]
[1672748703685,5.6165,1217.8,1217.7,29.64330265]
[1672748706894,5.0,1217.8,1217.7,29.64330265]
[1672748708939,22.48500407,1217.9,1217.7,29.64330265]
[1672748709152,3.69362149,1217.8,1217.7,29.64330265]
[1672748709499,3.69361639,1217.8,1217.7,29.64105368]
[1672748709717,3.69361639,1217.8,1217.7,33.78991482]
[1672748710094,8.69361639,1217.8,1217.7,33.78991482]
[1672748715975,3.69361639,1217.8,1217.7,33.78991482]
[1672748717301,4.55950407,1217.9,1217.7,33.78991482]
[1672748717614,3.69602265,1217.8,1217.7,33.78991482]
[1672748718226,3.69595571,1217.8,1217.7,33.78991482]
[1672748718391,4.55950407,1217.9,1217.7,33.78991482]
[1672748718601,4.30904407,1217.8,1217.7,33.78991482]
[1672748718834,4.55950407,1217.9,1217.7,33.78991482]
[1672748719061,4.49350407,1217.9,1217.7,33.78991482]
[1672748719489,4.30904407,1217.8,1217.7,33.78991482]
[1672748720231,4.55950407,1217.9,1217.7,33.78991482]
[1672748720448,4.49350407,1217.9,1217.7,33.78991482]
[1672748721544,3.69654364,1217.8,1217.7,33.78991482]
[1672748721757,7.39308688,1217.8,1217.7,33.78991482]
[1672748722000,8.00558771,1217.8,1217.7,33.78991482]
[1672748722210,13.00558771,1217.8,1217.7,33.78991482]
[1672748723793,13.00558771,1217.8,1217.7,29.64105368]
[1672748727493,15.33299831,1217.8,1217.7,29.64105368]
[1672748728528,13.00256711,1217.8,1217.7,29.64105368]
[1672748732651,17.93056711,1217.8,1217.7,19.78641368]
[1672748733065,17.93056711,1217.8,1217.7,29.64105368]
[1672748738176,17.93056711,1217.8,1217.7,19.78641368]
[1672748739174,13.62152304,1217.8,1217.7,19.78641368]
[1672748739514,17.93262227,1217.8,1217.7,29.64105368]
[1672748739882,13.62152304,1217.8,1217.7,29.64105368]
[1672748740094,17.93269409,1217.8,1217.7,29.64105368]
[1672748741080,13.62152304,1217.8,1217.7,29.64105368]
[1672748741247,17.93234605,1217.8,1217.7,19.78641368]
[1672748741457,15.94880948,1217.8,1217.7,19.78641368]
[1672748741719,21.03886779,1217.8,1217.7,19.78641368]
[1672748741930,15.94880948,1217.8,1217.7,19.78641368]
[1672748743304,20.2592074,1217.8,1217.7,29.64105368]
[1672748744397,20.2588043,1217.8,1217.7,0.07938265]
[1672748744613,21.03886779,1217.8,1217.6,29.38547265]
[1672748744861,14.23803343,1217.7,1217.6,29.64472265]
[1672748745411,15.79952057,1217.7,1217.6,29.64472265]
[1672748746665,15.79952057,1217.7,1217.6,9.93483265]
[1672748746666,16.57954545,1217.7,1217.6,9.93483265]
[1672748747456,16.57954545,1217.7,1217.6,19.79028265]
[1672748748411,16.57954545,1217.7,1217.6,29.64573265]
[1672748750245,11.48948714,1217.7,1217.6,29.64573265]
[1672748750820,11.48948714,1217.7,1217.6,29.64254614]
[1672748752246,15.79333991,1217.7,1217.6,29.64254614]
[1672748753365,10.79333991,1217.7,1217.6,29.64254614]
[1672748754449,15.79333991,1217.7,1217.6,29.64254614]
[1672748760278,10.79333991,1217.7,1217.6,29.64254614]
[1672748761598,15.79333991,1217.7,1217.6,29.64254614]
[1672748767366,10.79333991,1217.7,1217.6,29.64254614]
[1672748768392,15.79333991,1217.7,1217.6,29.64254614]
[1672748768598,15.79333991,1217.7,1217.6,19.78709614]
[1672748769397,16.57954545,1217.7,1217.6,19.78709614]
[1672748769541,16.57954545,1217.7,1217.6,0.07619614]
[1672748769752,16.57954545,1217.7,1217.5,19.78779614]
[1672748769982,14.23177911,1217.6,1217.5,19.78779614]
[1672748770191,16.32011157,1217.6,1217.5,19.78779614]
[1672748771407,16.32011157,1217.6,1217.5,29.64405614]
[1672748773706,16.32011157,1217.6,1217.5,29.64120826]
[1672748777483,11.32011157,1217.6,1217.5,29.64120826]
[1672748778391,16.32011157,1217.6,1217.5,29.64120826]
[1672748779189,16.32180039,1217.6,1217.5,29.64120826]
[1672748780330,12.01633246,1217.6,1217.5,29.64120826]
[1672748780873,9.928,1217.6,1217.5,29.64120826]
[1672748781096,14.2343891,1217.6,1217.5,29.64120826]
[1672748786450,9.928,1217.6,1217.5,29.64120826]
[1672748788825,15.01805831,1217.6,1217.5,29.64120826]
[1672748790295,10.01805831,1217.6,1217.5,29.64120826]
[1672748791067,4.928,1217.6,1217.5,29.64120826]
[1672748791257,15.01805831,1217.6,1217.5,29.64120826]
[1672748791480,9.928,1217.6,1217.5,29.64120826]
[1672748795463,15.01805831,1217.6,1217.5,29.64120826]
[1672748796280,16.52646414,1217.6,1217.5,29.64120826]
[1672748797211,16.52646414,1217.6,1217.5,29.63771106]
[1672748797340,11.52646414,1217.6,1217.5,29.63771106]
[1672748798282,16.52646414,1217.6,1217.5,29.63771106]
[1672748800218,19.12527224,1217.6,1217.5,29.63771106]
[1672748803235,17.61686641,1217.6,1217.5,29.63771106]
[1672748804377,12.61686641,1217.6,1217.5,29.63771106]
[1672748805210,17.61686641,1217.6,1217.5,29.63771106]
[1672748806957,12.5268081,1217.6,1217.5,29.63771106]
[1672748807111,16.83820968,1217.6,1217.5,30.05344121]
[1672748808428,16.83820968,1217.6,1217.5,29.63771106]
[1672748809372,11.91020968,1217.6,1217.5,29.63771106]
[1672748809586,11.91020968,1217.6,1217.5,36.66860477]
[1672748812575,11.91020968,1217.6,1217.5,35.8185722]
[1672748813791,11.91020968,1217.6,1217.5,43.30772909]
[1672748814001,7.5988081,1217.6,1217.5,45.77924106]
[1672748814151,10.67826413,1217.6,1217.5,45.77924106]
[1672748814521,5.67826413,1217.6,1217.5,45.77924106]
[1672748815115,5.67826413,1217.6,1217.5,53.57326893]
[1672748815744,5.67826413,1217.6,1217.5,46.08411204]
[1672748816605,5.67826413,1217.6,1217.5,53.56386443]
[1672748817238,2.5988081,1217.6,1217.5,53.56386443]
[1672748817569,5.67826413,1217.6,1217.5,53.56386443]
[1672748817723,5.67826413,1217.6,1217.5,53.56162776]
[1672748819325,2.5988081,1217.6,1217.5,53.56162776]
[1672748819955,2.5988081,1217.6,1217.5,53.56161652]
[1672748820303,2.5988081,1217.6,1217.5,45.6423634]
[1672748821522,2.5988081,1217.6,1217.5,53.12210097]
[1672748821728,2.5988081,1217.6,1217.5,49.12210097]
[1672748821980,2.5988081,1217.6,1217.5,41.6423634]
[1672748822813,5.67826413,1217.6,1217.5,41.6423634]
[1672748823363,2.5988081,1217.6,1217.5,41.6423634]
[1672748824989,2.5988081,1217.6,1217.5,49.12458321]
[1672748825201,2.5988081,1217.6,1217.5,41.6423634]
[1672748827761,2.5988081,1217.6,1217.5,49.12457834]
[1672748828169,3.14545603,1217.7,1217.5,41.6423634]
[1672748828370,3.07945603,1217.7,1217.6,27.92376114]
[1672748828605,3.07945603,1217.7,1217.6,49.75218471]
[1672748829932,3.14545603,1217.8,1217.6,49.75218471]
[1672748830211,3.07945603,1217.8,1217.7,12.18086114]
[1672748830366,3.07945603,1217.8,1217.7,41.82097728]
[1672748832091,3.07198576,1217.8,1217.7,41.82097728]
[1672748833349,3.07198576,1217.8,1217.7,43.77483515]
[1672748836616,3.07398576,1217.8,1217.7,43.77283515]
[1672748836784,3.07198576,1217.8,1217.7,43.77483515]
[1672748839471,3.07198576,1217.8,1217.7,41.74283515]
[1672748839688,3.07198576,1217.8,1217.7,43.77183515]
[1672748843371,4.57395106,1217.9,1217.7,43.77183515]
[1672748843680,4.50795106,1217.9,1217.8,33.71035114]
[1672748843850,8.89145106,1217.9,1217.8,33.78654728]
[1672748845261,5.20506814,1217.9,1217.8,33.78654728]
[1672748845979,8.89557136,1217.9,1217.8,33.78654728]
[1672748846143,3.89557136,1217.9,1217.8,33.78654728]
[1672748847038,0.20506814,1217.9,1217.8,33.78654728]
[1672748847212,9.50584821,1217.9,1217.8,33.78654728]
[1672748849449,9.50584821,1217.9,1217.8,33.78432288]
[1672748852726,9.50584821,1217.9,1217.8,29.63768614]
[1672748853352,9.50584821,1217.9,1217.8,9.93002614]
[1672748853875,4.50584821,1217.9,1217.8,19.78385614]
[1672748854031,0.20506814,1217.9,1217.8,19.78385614]
[1672748854248,5.20506814,1217.9,1217.8,19.78385614]
[1672748854446,5.20506814,1217.9,1217.8,9.93002614]
[1672748854656,5.20506814,1217.9,1217.8,19.78385614]
[1672748854868,7.98910188,1217.9,1217.8,9.93002614]
[1672748856512,7.98910188,1217.9,1217.8,0.07619614]
[1672748856657,7.98910188,1217.9,1217.8,9.85383]
[1672748856865,7.98910188,1217.9,1217.8,9.93002614]
[1672748857390,13.06939834,1217.9,1217.8,9.93002614]
[1672748864500,10.2853646,1217.9,1217.8,9.93002614]
[1672748864956,5.2853646,1217.9,1217.8,9.93002614]
[1672748865910,10.2853646,1217.9,1217.8,9.93002614]
[1672748867859,10.2853646,1217.9,1217.8,19.78385614]
[1672748868252,10.2853646,1217.9,1217.8,0.07619614]
[1672748868466,10.2853646,1217.9,1217.7,29.63868614]
[1672748868701,10.2853646,1217.9,1217.8,9.85383]
[1672748868885,10.2853646,1217.9,1217.8,9.93002614]
[1672748870235,15.2133646,1217.9,1217.8,9.93002614]